Cogmind - Beta 15 @@@ ROGUE MODE // 2025.10.20 @ 12:17:42 Player: Lazz Result: Destroyed by ZX-6J9(R) with Subdweller Machine Gun Performance ------------- Evolutions (0) 0 Regions Visited (2) 400 Robots Destroyed (13) 65 Value Destroyed (399) 399 Prototype IDs (0) 0 Alien Tech Used (0) 0 Bonus (0) 0 TOTAL SCORE: 864 Bonus ------- None Cogmind --------- Core Integrity 0/250 Matter 300/300 Energy 200/200 System Corruption 0% Temperature Cool (0) Movement Core (850) Ox16 Location -10/Subcaves Parts ------- > --- POWER (1) -------- Subdweller Power Source > --- PROPULSION (2) --- (None) > --- UTILITY (2) ------ Light Humpback > --- WEAPON (2) ------- Subdweller Machine Gun > --- INVENTORY (25) --- Subdweller Power Source Aluminum Leg Disposable Heat Sink Small Storage Unit ECM Suite Scrap Shield Small Laser Peak State ------------ > --- POWER ------------ Subdweller Power Source > --- PROPULSION ------- Aluminum Leg Aluminum Leg > --- UTILITY ---------- Light Humpback > --- WEAPON ----------- Subdweller Machine Gun Subdweller Machine Gun > --- INVENTORY -------- Subdweller Power Source Aluminum Leg Small Storage Unit ECM Suite Scrap Shield Small Laser [Rating: 11] Favorites ----------- Power Ion Engine Engine Ion Engine Propulsion Aluminum Leg Treads Light Treads Leg Aluminum Leg Utility Light Humpback Device ECM Suite Storage Light Humpback Weapon Subdweller Machine Gun Energy Gun Small Laser Ballistic Gun Subdweller Machine Gun Build | -11 -10 -10 ------- Run | Yrd Mat Sub Slots Evolved . | . . . Power . | . . . Propulsion . | . . . Utility . | . . . Weapon . | . . . Parts Attached 14 | 6 1 7 Power 2 | 1 . 1 Engine 2 | 1 . 1 Core . | . . . Reactor . | . . . Propulsion 4 | 2 . 2 Treads 2 | 2 . . Leg 2 | . . 2 Wheel . | . . . Hover . | . . . Flight . | . . . Utility 3 | 1 1 1 Device 1 | . 1 . Storage 2 | 1 . 1 Processor . | . . . Hackware . | . . . Protection . | . . . Artifact . | . . . Weapon 5 | 2 . 3 Energy Gun 3 | 2 . 1 Energy Cannon . | . . . Ballistic Gun 2 | . . 2 Ballistic Cannon . | . . . Launcher . | . . . Special Weapon . | . . . Impact Weapon . | . . . Slashing Weapon . | . . . Piercing Weapon . | . . . Special Melee Weapon . | . . . Unidentified Prototypes . | . . . Parts Lost 7 | . . 7 Power 1 | . . 1 Propulsion 4 | . . 4 Utility . | . . . Weapon 2 | . . 2 Highest Loss Streak 2 | . . 2 To Critical Strikes . | . . . Average Backups 5 | 3 4 6 Power 1 | . 1 1 Propulsion 1 | 1 2 1 Utility 1 | . . 2 Weapon . | . 1 . Tool/Special . | . . . Unused Backups 6 | . . 6 Power 3 | . . 3 Propulsion 1 | . . 1 Utility 2 | . . 2 Weapon . | . . . Tool/Special . | . . . Average Slot Usage (%) 84 | . 95 82 Engine 13 | . 14 13 Treads 5 | . 28 2 Leg 18 | . . 20 Device 5 | . 10 5 Storage 13 | . 14 13 Energy Gun 11 | . 28 8 Ballistic Gun 14 | . . 16 Peak Build Rating 11 | 6 7 11 Average Rating 8 | 4 6 8 On Entrance 4 | . 6 7 Naked Turns . | . . . Heaviest Build 53 | 13 15 53 Greatest Support 40 | 40 40 40 Greatest Overweight (x) 16 | 3 . 16 Average Overweight (x) 1 | . . 1 Largest Inventory Capacity 25 | 8 8 25 Average Capacity 16 | 7 8 18 Most Carried 8 | 6 6 8 Average Carried 6 | 3 4 7 Final Capacity 25 | 8 8 25 Final Carried 8 | 4 6 8 Class Distribution -------------------- 100% | Mutant Dominant Class ---------------- Mutant | -10/Materials Mutant | -10/Subcaves Resources | -11 -10 -10 ----------- Run | Yrd Mat Sub Matter Collected 386 | 256 14 116 Remotely . | . . . Salvage Created 439 | . 49 390 Parts 36 | . 4 32 Haulers Intercepted . | . . . Recyclers Shooed . | . . . Parts Field Recycled . | . . . Retrieved Matter . | . . . Parts Self-Destructed 14 | . . 14 Prevented . | . . . Kills | -11 -10 -10 ------- Run | Yrd Mat Sub Combat Hostiles Destroyed 13 | . 2 11 Melee 1 | . 1 . Guns 12 | . 1 11 Classes Destroyed 4 | . 2 2 Swarmer 4 | . 1 3 Grunt 1 | . 1 . Sentry 1 | . . 1 Subdweller 7 | . . 7 Best Kill Streak 3 | . 1 3 Combat Bots Only 3 | . 1 3 Max Kills in Single Turn 1 | . 1 1 Gunslinging . | . . . Exploded . | . . . Melee 1 | . 1 . Uniques/NPCs Destroyed . | . . . Combat | -11 -10 -10 -------- Run | Yrd Mat Sub Hostile Shots Fired 135 | . 19 116 Missed 41 | . 5 36 Hits 94 | . 14 80 Projectile 94 | . 14 80 Critical Strikes 2 | . . 2 Damage Taken 1265 | . 121 1144 Core 253 | . 12 241 Absorbed by Shields . | . . . Core Remaining (%) 100 | 100 . . Volleys Fired 45 | . 5 40 Largest 2 | . 2 2 Hottest 90 | . 90 90 Shots Fired 78 | . 10 68 Gun 78 | . 10 68 Cannon . | . . . Launcher . | . . . Special . | . . . Kinetic 30 | . . 30 Thermal 48 | . 10 38 Explosive . | . . . Electromagnetic . | . . . Robot Hit Streak 11 | . 2 11 Robot Miss Streak 5 | . 4 5 Penetration Max . | . . . Secondary Targets 1 | . . 1 Max Gunslinging Chain 1 | . . 1 Shots Hit Robots 51 | . 4 47 Core Hits 22 | . 2 20 Critical Kills 1 | . . 1 Critical Parts Destroyed . | . . . Critical Strikes 3 | . . 3 Burn 2 | . . 2 Destroy 1 | . . 1 Melee Attacks . | . . . Impact . | . . . Slashing . | . . . Piercing . | . . . Sneak Attacks . | . . . Combat Hostiles . | . . . Follow-up Attacks . | . . . Damage Inflicted 788 | . 50 738 Guns 784 | . 46 738 Cannons . | . . . Explosions . | . . . Melee . | . . . Ramming 4 | . 4 . Kinetic 401 | . . 401 Thermal 383 | . 46 337 Explosive . | . . . Electromagnetic . | . . . Impact . | . . . Slashing . | . . . Piercing . | . . . Highest Corruption . | . . . Average Corruption . | . . . Corruption Purged . | . . . Corruption Blocked . | . . . Overload Shots . | . . . Overflow Damage . | . . . Projectiles . | . . . Explosions . | . . . Melee . | . . . Knockbacks . | . . . Impact . | . . . Kinetic . | . . . Secondary . | . . . Self-Inflicted Damage . | . . . Shots . | . . . Rammed . | . . . Targets Rammed 1 | . 1 . Kicked . | . . . Crushed 1 | . 1 . Highest Temperature 102 | . 102 . Average Temperature 44 | . 44 . Received Heat Transfer 207 | . 12 195 Siege Activations . | . . . Martial Activations . | . . . Shielding Activations . | . . . Robots Disrupted . | . . . Combat Hostiles . | . . . Robots Corrupted . | . . . Combat Hostiles . | . . . Parts Fried . | . . . Impact Corruptions . | . . . Robots Melted . | . . . Combat Hostiles . | . . . Parts Melted 2 | . 1 1 Heat Transferred 1117 | . 124 993 Parts Sabotaged . | . . . Parts Stolen . | . . . Parts Stripped . | . . . Power Chain Reactions . | . . . Alert | -11 -10 -10 ------- Run | Yrd Mat Sub Maximum Alert Level . | . . . Low Security (%) 100 | 100 100 . Level 1 . | . . . Level 2 . | . . . Level 3 . | . . . Level 4 . | . . . Level 5 . | . . . High Security . | . . . Max Security . | . . . Peak Influence 30 | . 30 . Initial . | . . . Average 4 | . 8 . Influence Increases 215 | . 60 155 Destroy 0b10 Robot/C 120 | . 40 80 Destroy Leader 20 | . 20 . Lose Combat Pursuer 75 | . . 75 Influence Decreases 164 | . 40 124 Entered New Map 10 | . . 10 Time Decay 124 | . 40 84 Lost Part 30 | . . 30 Squads Dispatched 1 | . 1 . Investigation . | . . . Extermination . | . . . Reinforcement 1 | . 1 . Assault . | . . . Garrison . | . . . Intercept . | . . . Searches Triggered . | . . . Construction Impeded . | . . . Haulers Reinforced . | . . . Active Scanning Responses . | . . . Cargo Convoy Interrupts . | . . . Stealth | -11 -10 -10 --------- Run | Yrd Mat Sub Distress Signals . | . . . Communications Jammed . | . . . Distress Signals . | . . . Times Spotted 24 | . 7 17 Peak Tracking Total 8 | . 8 6 Tactical Retreats 3 | . 1 2 Traps | -11 -10 -10 ------- Run | Yrd Mat Sub Traps Triggered . | . . . Indirectly . | . . . Trap Hack Attempts . | . . . Triggered . | . . . Disarmed . | . . . Reprogrammed . | . . . Reused . | . . . Traps Extracted . | . . . Installed . | . . . Triggered . | . . . Machines | -11 -10 -10 ---------- Run | Yrd Mat Sub Machines Disabled . | . . . Max in Single Turn . | . . . Machines Repaired . | . . . Machines Dismantled . | . . . Machines Sabotaged . | . . . Overloaded Fab Kills . | . . . Hacking | -11 -10 -10 --------- Run | Yrd Mat Sub Machines Accessed 1 | . . 1 Terminals . | . . . Fabricators . | . . . Repair Stations . | . . . Recycling Units . | . . . Scanalyzers . | . . . Garrison Access . | . . . Total Hacks 4 | . . 4 Successful 4 | . . 4 Failed . | . . . Catastrophic . | . . . Database Lockouts . | . . . Manual . | . . . Terminals . | . . . Fabricators . | . . . Repair Stations . | . . . Recycling Units . | . . . Scanalyzers . | . . . Garrison Access . | . . . Terminal Hacks 4 | . . 4 Record 4 | . . 4 Fabricator Hacks . | . . . Repair Station Hacks . | . . . Recycling Unit Hacks . | . . . Scanalyzer . | . . . Garrison Access Hacks . | . . . Unauthorized Hacks . | . . . Terminals . | . . . Fabricators . | . . . Repair Stations . | . . . Recycling Units . | . . . Scanalyzers . | . . . Garrison Access . | . . . Data Cores Recovered . | . . . Used . | . . . Hacking Detections . | . . . Full Trace Events . | . . . Feedback Events . | . . . Feedback Blocked . | . . . Robot Schematics Acquired . | . . . Robots Built . | . . . Authchips . | . . . Time . | . . . Total Robot Build Rating . | . . . Part Schematics Acquired . | . . . Parts Built . | . . . Authchips . | . . . Time . | . . . Total Part Build Rating . | . . . Parts Repaired . | . . . Time . | . . . Parts Recycled . | . . . Recycled Matter . | . . . Retrieved Matter . | . . . Retrieved Components . | . . . Parts Scanalyzed . | . . . Part Schematics Acquired . | . . . Parts Damaged . | . . . Bothacking | -11 -10 -10 ------------ Run | Yrd Mat Sub Used RIF Installer . | . . . Robots Hacked . | . . . Non-combat . | . . . Combat . | . . . Robot Hacks Applied . | . . . Relay Couplers Released . | . . . Fabnet Peak Effective % . | . . . Robots Rewired . | . . . Allies Hacked . | . . . Hacks Repelled . | . . . Allies | -11 -10 -10 -------- Run | Yrd Mat Sub Total Allies . | . . . Largest Group . | . . . Highest-Rated Group . | . . . Highest-Rated Ally . | . . . Total Orders . | . . . Ally Attacks . | . . . Total Damage . | . . . Kills . | . . . Allies Corrupted . | . . . Allies Melted . | . . . Intel | -11 -10 -10 ------- Run | Yrd Mat Sub Active Infowar (turns) 427 | . 101 326 ECM 427 | . 101 326 Robot Analysis Total . | . . . Derelict Logs Recovered 1 | . . 1 Drone Launches . | . . . Drone Recoveries . | . . . Exploration | -11 -10 -10 ------------- Run | Yrd Mat Sub Turns Passed 1137 | 112 128 897 Spaces Moved 502 | 71 68 363 Core 36 | 23 . 13 Treads 161 | 48 68 45 Legs 305 | . . 305 Wheels . | . . . Hover . | . . . Flight . | . . . Fastest Speed 50 | 50 160 120 Average Speed 194 | 134 160 212 Slowest Speed 850 | 200 160 850 Overloaded Moves . | . . . Propulsion Burnouts . | . . . Robots Hopped . | . . . Potential Cave-ins . | . . . Cave-ins Triggered . | . . . Exploration Rate (%) 14 | 4 19 20 Regions Visited 2 Branch Regions 1 Pre-discovered Areas 1 | . . 1 Known Exits Taken . | . . . Unknown Exits Taken 2 | 1 1 . Scrap Searched . | . . . Spaces Dug . | . . . Terrain Destroyed . | . . . Melee . | . . . Projectile . | . . . AOE . | . . . Terrain Rammed . | . . . Walls Destroyed . | . . . Machines Disabled . | . . . Actions | -11 -10 -10 --------- Run | Yrd Mat Sub Total 593 | 88 77 428 Wait 3 | 2 . 1 Move 500 | 70 67 363 Hop . | . . . Pick Up 25 | 10 3 12 Fast Attach . | . . . Attach 13 | 6 1 6 Detach . | . . . Swap 1 | . . 1 Drop 5 | . . 5 Fire 45 | . 5 40 Melee . | . . . Ram . | . . . Kick . | . . . Crush 1 | . 1 . Escape Stasis . | . . . Rewire . | . . . Trap . | . . . Miscellaneous . | . . . Route ------- -11/Scrapyard -10/Materials -10/Subcaves (discovered 3 exits: *Mat x2 / Rec) History --------- Turn | Location | Event 5 | -11/Scrapyard | Discovered new exit (range 16) 113 | -11/Scrapyard | Entered Materials 232 | -10/Materials | Discovered new exit (range 7) 241 | -10/Materials | Entered Subcaves 242 | -10/Subcaves | Approached by a straggling Scientist 252 | -10/Subcaves | Learned location of Zion (-6) 252 | -10/Subcaves | Met a Zionite searching for "candidates" 286 | -10/Subcaves | Identified exit to Recycling 313 | -10/Subcaves | Build established: Mutant 379 | -10/Subcaves | Lost 3 allies 506 | -10/Subcaves | Disturbed a concealed Subdweller 547 | -10/Subcaves | Discovered new exit (range 14) 551 | -10/Subcaves | Shifting Twisted Machinery released Sub. Power Source 556 | -10/Subcaves | Shifting Twisted Machinery released Lgt. Humpback 603 | -10/Subcaves | Core integrity fell below 50% 632 | -10/Subcaves | Visited Clippyterm 640 | -10/Subcaves | Identified exit to Materials 640 | -10/Subcaves | Learned Research security intel 1005 | -10/Subcaves | Core integrity fell below 20% 1138 | -10/Subcaves | Destroyed by ZX-6J9(R) with Subdweller Machine Gun Last Messages --------------- Acquired Disposable Heat Sink. 6W-CSS(u) tweaks Twisted Machinery. S-10 Pest destroyed. Destroyed Flight Unit. Sub. Machine Gun destroyed. S-10 Pest destroyed. Lgt. Ion Engine fries itself beyond repair. S-10 Pest destroyed. Flight Unit fries itself beyond repair. Destroyed Flight Unit. Lgt. Assault Rifle fries itself beyond repair. Flight Unit fries itself beyond repair. Lgt. Assault Rifle fries itself beyond repair. S-10 Pest destroyed. Aluminum Leg destroyed. Acquired 22 matter. Lgt. Ion Engine fries itself beyond repair. Flight Unit fries itself beyond repair. Aluminum Leg destroyed. Map ----- +----------------------------------------------------+ | ?????????????????????????????????????????????????? | | ?????????????????????????????????????????????????? | | ?????????????????????????????????????????????????? | | ?????????????????????????????????????????????????? | | ?????????????????????????????????????????????????? | | ?????????????????????????????????????????????????? | | ?????????????????????????????????????????????????? | | ?????????????????????????????????????????????????? | | ?????????????????????????????????????????????????? | | ??????????????????????????????#??????????????????? | | ?????????????????????????????? ??????????????????? | | ?????????????????????????????? ??????????????????? | | ?????????????????????????????? ??????????????????? | | ?????????????????????????????# #?????????????????? | | ????????????????????????????? #?????????????????? | | ?????????????????? ""???????? #?????????????????? | | ??????????????????#""???????## #?????????????????? | | ??????????????????? ??????? #????###??????????? | | ???????????????????# ###????# ?### ##????? ?? | | ??????????????????## ????# ### ### ?? | | ??????????????????? ????# # ?? | | ???????????????##???? ?#### #??????? | | ??????????????# ????## ## # ## ########?????? | | ????????????## ????# R ## ### # #?????? | | ??????? ? #????## R # #?????? | | ???????? ##???# ##@ # # # ### #?????? | | ????????? ##?????#### # ####?## ###???? | | ?????????? ?????????## #### #????# #???? | | ??????????? ??##??????# ##??# #????### #???? | | ???????????# ???# ##???# #????###??????# #?### | | ???????????# ##???# #??# #???????????#### ## # | | ???????????# "#?## # ## ####?????????# ## | | ?????####??## "### ### ### #?????????# ### # | | ????## #### ## #????????# #??## # | | ?####" ##! "" ######### ##???????## #???## | | ## " " =&%& " ##???#" #????????# #????# | | # " "" &! " ## #???##" ##?####??# #????# % | | " "" [ ## ##????#" ### #### ##??## | | " "" "" # #????#"" "## #### # | | " " " ##????#"" ##" # ### | | " " # #????# "" ####"" ## #? | | " "" "########????# "" ##" #### #? | | " ""#???????????##"" "" #??## #? | | " ####????????????# "" # # ##???####? | | ###" ##???????????????##""""########????????? | | ??#########?????????????????######???????????????? | | ?????????????????????????????????????????????????? | | ?????????????????????????????????????????????????? | | ?????????????????????????????????????????????????? | | ?????????????????????????????????????????????????? | +----------------------------------------------------+ Best States ------------- Heat Dissipation 25 Energy Generation 15 Energy Capacity 250 Matter Stores 300 Matter Capacity 300 Sight Range 16 Terrain Scan Density 10 ECM Strength 1 Evasion (%) 55 Recoil Reduction 2 Item Schematics ----------------- None Robot Schematics ------------------ None Fabricated ------------ Nothing Repaired ---------- Nothing Alien Tech Used ----------------- None Achievements -------------- None Challenges ------------ None Game ------ Seed DispersalCryofiberActivator Manual? 0 Play Time 00:16:50 Cumulative 8.1 hours Start 2025.10.20 @ 10:54:16 End 2025.10.20 @ 12:17:42 Sessions 2 Manual Loads 0 Difficulty Rogue Special Mode None Game No. 11 Rogue 11 Adventurer 0 Explorer 0 Win Type - Total 0 Types 0/0/0/0/0/0/0/0/0/0 Lore% 7 Gallery% 11 Achievement% 12 Wizard Run 0 Options --------- Layout 2 ASCII 0 Keyboard 0 Movement Mouse Keybinds 0 Fullscreen 1 Font 16/SmallcapsGlow Map View 25x22 Zoom Use 92% Tactical HUD 0 Map Filters NONE Filters NONE Steam SD RUN: 3f3ca258-c3e8-4dfd-ad35-263f4b6cb726